Workbook

Sheet Use Agreement
A1: SOFTWARE USE AGREEMENT
A3: Access to the Repurposing Cost Calculator (“Software”) is provided by the National Renewable Energy Laboratory (“NREL”), which is operated by Alliance for Sustainable Energy, LLC (“ALLIANCE”), for the U.S. Department of Energy (“DOE”).
A4: Access to and use of this Software shall impose the following obligations on the user, and use of the Software constitutes user’s agreement to these terms. The Software is being provided, without any fee or cost, for internal purposes only and shall not be re-distributed.
A5: The user agrees to credit DOE/NREL/ALLIANCE in any publication that results from the use of this Software. The names DOE/NREL/ALLIANCE, however, may not be used in any advertising or publicity to endorse or promote any products or commercial entities unless specific written permission is obtained from DOE/NREL/ ALLIANCE. The user also understands that DOE/NREL/ALLIANCE is not obligated to provide the user with any support, consulting, training or assistance of any kind with regard to the use of the Software or to provide the user with any updates, revisions or new versions of the Software.
A6: USER AGREES TO INDEMNIFY DOE/NREL/ALLIANCE AND ITS SUBSIDIARIES, AFFILIATES, OFFICERS, AGENTS, AND EMPLOYEES AGAINST ANY CLAIM OR DEMAND, INCLUDING REASONABLE ATTORNEYS' FEES, RELATED TO USER’S USE OF THE SOFTWARE. THE SOFTWARE IS PROVIDED BY DOE/NREL/ALLIANCE "AS IS," AND ANY EXPRESS OR IMPLIED WARRANTIES, INCLUDING BUT NOT LIMITED TO THE IMPLIED WARRANTIES OF MERCHANTABILITY AND FITNESS FOR A PARTICULAR PURPOSE ARE DISCLAIMED. IN NO EVENT SHALL DOE/NREL/ALLIANCE BE LIABLE FOR ANY SPECIAL, INDIRECT OR CONSEQUENTIAL DAMAGES OR ANY DAMAGES WHATSOEVER, INCLUDING BUT NOT LIMITED TO CLAIMS ASSOCIATED WITH THE LOSS OF DATA OR PROFITS, THAT MAY RESULT FROM AN ACTION IN CONTRACT, NEGLIGENCE OR OTHER TORTIOUS CLAIM THAT ARISES OUT OF OR IN CONNECTION WITH THE ACCESS, USE OR PERFORMANCE OF THE SOFTWARE.
A7: Results generated by use of this Software are dependent on many variables, including the quality of the data entered by the user and any assumptions made by the user in relation to data inputs. Accordingly, DOE, NREL, and ALLIANCE cannot guarantee any results generated by use of the Software and user is entirely responsible for the results and any reliance on the results. User shall not claim that DOE/NREL/ALLIANCE authenticate or otherwise agree with the results generated by the Software.
A9: DISCLAIMER
A11: The National Renewable Energy Laboratory (NREL) is operated for the U.S. Department of Energy (DOE) by Alliance for Sustainable Energy, LLC ("Alliance").
A12: Access to or use of any data or software made available on this server ("Data") shall impose the following obligations on the user, and use of the Data constitutes user's agreement to these terms. The user is granted the right, without any fee or cost, to use or copy the Data, provided that this entire notice appears in all copies of the Data. Further, the user agrees to credit DOE/NREL/ALLIANCE in any publication that results from the use of the Data. The names DOE/NREL/ALLIANCE, however, may not be used in any advertising or publicity to endorse or promote any products or commercial entities unless specific written permission is obtained from DOE/NREL/ ALLIANCE. The user also understands that DOE/NREL/ALLIANCE are not obligated to provide the user with any support, consulting, training or assistance of any kind with regard to the use of the Data or to provide the user with any updates, revisions or new versions thereof. DOE, NREL, and ALLIANCE do not guarantee or endorse any results generated by use of the Data, and user is entirely responsible for the results and any reliance on the results or the Data in general.
A13: USER AGREES TO INDEMNIFY DOE/NREL/ALLIANCE AND ITS SUBSIDIARIES, AFFILIATES, OFFICERS, AGENTS, AND EMPLOYEES AGAINST ANY CLAIM OR DEMAND, INCLUDING REASONABLE ATTORNEYS' FEES, RELATED TO USER'S USE OF THE DATA. THE DATA ARE PROVIDED BY DOE/NREL/ALLIANCE "AS IS," AND ANY EXPRESS OR IMPLIED WARRANTIES, INCLUDING BUT NOT LIMITED TO THE IMPLIED WARRANTIES OF MERCHANTABILITY AND FITNESS FOR A PARTICULAR PURPOSE ARE DISCLAIMED. DOE/NREL/ALLIANCE ASSUME NO LEGAL LIABILITY OR RESPONSIBILITY FOR THE ACCURACY, COMPLETENESS, OR USEFULNESS OF THE DATA, OR REPRESENT THAT ITS USE WOULD NOT INFRINGE PRIVATELY OWNED RIGHTS. IN NO EVENT SHALL DOE/NREL/ALLIANCE BE LIABLE FOR ANY SPECIAL, INDIRECT OR CONSEQUENTIAL DAMAGES OR ANY DAMAGES WHATSOEVER, INCLUDING BUT NOT LIMITED TO CLAIMS ASSOCIATED WITH THE LOSS OF DATA OR PROFITS, THAT MAY RESULT FROM AN ACTION IN CONTRACT, NEGLIGENCE OR OTHER TORTIOUS CLAIM THAT ARISES OUT OF OR IN CONNECTION WITH THE ACCESS, USE OR PERFORMANCE OF THE DATA.

Sheet Repurposing
A1: Module Properties
B2: Module Nameplate Energy | C2: 5 | D2: kWh
B3: Module Nameplate Energy Density | C3: 150 | D3: Wh/L
B4: Module Nameplate Specific Energy | C4: 115 | D4: Wh/kg
B5: Percent Remaining Energy @ time of repurposing | C5: 0.7
B6: Module Mass | C6: =C2/C4*1000 -> 43.47826087 | D6: kg
B7: Module Volume | C7: =C2/C3*1000*1000 -> 33333.33333 | D7: cm^3
B8: Module X | C8: =C7/C9/C10 -> 51.08729549 | D8: cm | E8: =C8/2.54/12 -> 1.676092372 | F8: ft
B9: Module Y | C9: =C10 -> 25.54364775 | D9: cm | E9: =C9/2.54/12 -> 0.8380461859 | F9: ft
B10: Module Z | C10: =(C7/2)^(1/3) -> 25.54364775 | D10: cm | E10: =C10/2.54/12 -> 0.8380461859 | F10: ft
B11: Module Footprint | C11: =C9*C8 -> 1304.95588 | D11: cm^2 | E11: =C11/2.54/2.54/144 -> 1.404642819 | F11: ft^2
B12: Approx Remaining Energy @ time of repurposing | C12: =C5*C2 -> 3.5 | D12: kWh
B13: Number of Cells in Module | C13: =CEILING(C2/0.074,1) -> 68
B14: Cell Fault Rate | C14: 1e-05
B15: Comp. Tech. Forced Selling Price ($/kWh) | C15: 44
A17: Facility Throughput
B18: Facility nameplate annual throughput | C18: 1000000 | D18: kWh/year
B19: Modules per year throughput | C19: =FLOOR(C18/C2,1) -> 200000
B20: Modules per day throughput | C20: =FLOOR(C19/365,1) -> 547
A22: Transportation | C22: 2 | E22: 1 | F22: 2 | G22: 3
B23: Collection Scale | C23: =LOOKUP(C$22,E$22:G$22,E23:G23) -> Regional | E23: Local | F23: Regional | G23: National
B24: Typical Round Trip Collection Distance | C24: =LOOKUP(C$22,E$22:G$22,E24:G24) -> 320 | D24: mi | E24: 30 | F24: 320 | G24: 2400
B25: Typical Round Trip Collection Time | C25: 8 | D25: hrs | E25: 2 | F25: 8 | G25: 44
B26: Truck Type | C26: Class 8 with 48' trailer | E26: 24' Box Truck | F26: Class 8 with 48' trailer | G26: Class 8 with 48' trailer
B27: Truck Purchase Cost | C27: 141000 | D27: $ | E27: 62000 | F27: 141000 | G27: =F27 -> 141000
B28: Truck Operational Cost | C28: 0.5 | D28: $/mi | E28: =4/10 -> 0.4 | F28: =4/8 -> 0.5 | G28: 0.5
B29: Truck Cargo Volume | C29: 108733440 | D29: cm^3 | E29: =10*10*24*28316 -> 67958400 | F29: =0.8*10*48*10*28316 -> 108733440 | G29: =F29 -> 108733440
B30: Truck Cargo Mass | C30: 22727.27273 | D30: kg | E30: =6500/2.2 -> 2954.545455 | F30: =50000/2.2 -> 22727.27273 | G30: =50000/2.2 -> 22727.27273
B31: Truck Module Capacity | C31: =FLOOR(MIN(C30/C6,C29/C7),1) -> 522
B32: Trips per Year | C32: =CEILING(C19/C31,1) -> 384
B33: Total Collection Time | C33: =C32*C25 -> 3072 | D33: hrs
B34: Number of Trucks & Drivers | C34: =CEILING(C33/(252*8),1) -> 2
B35: Total Miles Travelled per Year | C35: =C24*C32 -> 122880 | D35: mi
B36: Shipping Containers | C36: =CEILING(C34*C31*C2/10,1) -> 522
B37: Shipping Container Cost | C37: 500 | D37: $
A39: Module Handling & Testing Time
B40: Receiving Inspection & Handling | C40: 60 | D40: minutes
B41: Connection to & Initiation of Electrical Test Equipment | C41: 10 | D41: minutes
B42: Electrical Testing | C42: 75 | D42: minutes
B43: Time Spent Charging | C43: 45 | D43: minutes
B44: Average C-Rate for Charging | C44: 1
B45: Annual Electricity for Testing | C45: =C43/60*C44*C12/0.85*C19 -> 617647.0588 | D45: kWh
B46: Disconnection from Electrical Test Equipment | C46: 5 | D46: minutes
B47: Final Inspection and Packaging | C47: 45 | D47: minutes
B48: Total Technician Handling Time | C48: =C40+C41+C46+C47 -> 120 | D48: minutes
B49: Modules per Technician per Year | C49: =252*8/(C48/60) -> 1008
B50: Receiving Pallets Moved per Day | C50: =CEILING(C20/C89,1) -> 79
B51: Time to Load and Move 1 Pallet | C51: 15 | D51: minutes
B52: Fork Lift Operator Time per Day | C52: =C51*C50*2/60 -> 39.5 | D52: hours
A54: Staff
B55: Number of Technicians | C55: =MAX(1,CEILING(C19/C49,1)) -> 199
B56: Number of Forklift Operators | C56: =MAX(1,CEILING((C52*365)/(8*252),1)) -> 8
B57: Number of Truck Drivers | C57: =C34 -> 2
B58: Number of Supervisors | C58: =MAX(1,CEILING(SUM(C55:C57)/10,1)) -> 21
B59: Number of Sales Managers | C59: =MAX(1,CEILING(C18/100000,1)) -> 10
B60: Number of Electrical Engineers | C60: =MAX(1,CEILING(C18/100000,1)) -> 10
B61: Number of Operations Managers | C61: =IF(SUM(C55:C60)>20,1,0) -> 1
B62: Number of Chief Executives | C62: 1
B63: Number of Administrative Assistants | C63: =MAX(1,CEILING(SUM(C55:C62)/30,1)) -> 9
B64: Number of Human Resources Personnel | C64: =FLOOR(SUM(C55:C62)/30,1) -> 8
B65: Number of Security Guards | C65: 0
B66: Number of Janitors | C66: 0
B67: Number of Employees Onsite | C67: =CEILING((C59+C62+C63+C64)+0.23*(C60+C61+C55+C56+C58),1) -> 83
A69: Facility Size | H69: =C108+C97+C82 -> 15019.03412 | I69: ft^2
A70: Inspection, Test, and Packing | B70: Width+ Depth for Employee | C70: 3 | D70: ft
B71: Width of Forklift | C71: =2500/25.4/12 -> 8.202099738 | D71: ft
B72: Width of Hallway | C72: 5 | D72: ft
B73: Number of Inspection Stations | C73: =CEILING(C20*C40/60/24,1) -> 23 | D73: No.
B74: Number of Electrical Test Stations, Test Channels, CAN cards | C74: =CEILING(C20*SUM(C41,C42,C46)/60/24,1) -> 35 | D74: No.
B75: Number of Packing Stations | C75: =CEILING(C20*C47/60/24,1) -> 18 | D75: No.
B76: Station Width | C76: =MAX(2,E9+1) -> 2 | D76: ft
B77: Station Length | C77: =MAX(C70,E8+1) -> 3 | D77: ft
B78: Station Footprint | C78: =C77*C76 -> 6 | D78: ft^2
B79: Conveyer Width | C79: =C77 -> 3 | D79: ft
B80: Conveyer Length | C80: =CEILING((C73+C74+C75)/2,1)*(C76+C70) -> 190 | D80: ft
B81: Total Floor Width | C81: =C79+2*C77+2*C72+C71 -> 27.20209974 | D81: ft
B82: Total Floor Space | C82: =C81*C80 -> 5168.39895 | D82: ft^2
A83: Docks and Storage | B83: Floor Length for Forklift Maneuvering | C83: =C71*3*2 -> 49.21259843 | D83: ft
B84: Incoming (Outgoing) Modules to Store | C84: =C20 -> 547
B85: Stack Height of Storage Rack | C85: 10 | D85: ft
B86: Pallet Width | C86: =40/12 -> 3.333333333 | D86: ft
B87: Pallet Length | C87: 4 | D87: ft
B88: Pallet Height | C88: 0.5 | D88: ft
B89: Modules per Pallet | C89: =FLOOR(C86*C87/(1.2*E11),1) -> 7
B90: Pallets per Rack | C90: =FLOOR(C85/(C88+E10+0.5),1) -> 5
B91: Modules per Rack | C91: =C90*C89 -> 35
B92: Number of Racks that can fit in width of facility | C92: =FLOOR((C81-C71-C72-C72)/(C86+1),1) -> 2
B93: Number of Recieving (Shipping) Racks Required | C93: =CEILING(C84/C91,1) -> 16
B94: Rows of Receiving (Shipping) Racks | C94: =CEILING(C93/C92,1) -> 8
B95: Total Number of Racks Required | C95: =C93*2 -> 32
B96: Total Floor Length for Racks | C96: =C94*2*(C87+3) -> 112 | D96: ft
B97: Total Surface Area of Docks and Storage | C97: =C96*C81 -> 3046.635171 | D97: ft^2
A98: Offices, Etc. | B98: Width of Hallway | C98: 5 | D98: ft
B99: Total Length of Hallway | C99: =C105+C103 -> 324 | D99: ft
B100: Length of Offices, Restrooms | C100: 13 | D100: ft
B101: No. of Offices | C101: =C59+C60+C61+C62+C63+C64 -> 39
B102: Width of Office | C102: 8 | D102: ft
B103: Total Width of Offices | C103: =C102*C101 -> 312 | D103: ft
B104: Surface Area of Restrooms | C104: =MAX(C100*6*2,0.5*C67) -> 156 | D104: ft^2
B105: Total Width of Restrooms | C105: =C104/C100 -> 12 | D105: ft
B106: Surface Area of Breakroom | C106: =C67*4 -> 332 | D106: ft^2
B107: Surface Area of Workshop | C107: =64*C60 -> 640 | D107: ft^2
B108: Total Surface Area of Offices, Etc. | C108: =C107+C106+C104+C103*C100+C98*C99 -> 6804 | D108: ft^2
A110: Capital Costs | H110: =G112+G116+G124 -> 3094280.44
B111: Category | C111: Description | D111: Qty | E111: Unit Cost | F111: Item Cost | G111: Total Cost
B112: Test Equipment | G112: =SUM(F113:F115) -> 732600 | J112: =C118 -> Upfront Battery Purchases | K112: =F118 -> 1634980.44
C113: Battery Test Channels | D113: =C74 -> 35 | E113: =2*C2*2000 -> 20000 | F113: =E113*D114 -> 700000 | J113: =C113 -> Battery Test Channels | K113: =F113 -> 700000
C114: CAN hardware | D114: =D113 -> 35 | E114: 160 | F114: =E114*D114 -> 5600 | J114: =C121 -> MD Truck | K114: =F121 -> 282000
C115: Computers | D115: =CEILING(D113/4,1) -> 9 | E115: 3000 | F115: =E115*D115 -> 27000 | J115: =C122 -> Shipping Containers | K115: =F122 -> 261000
B116: Materials Handling | G116: =SUM(F117:F123) -> 2261680.44 | J116: =C117 -> Conveyors | K116: =F117 -> 28500
C117: Conveyors | D117: =C79*C80 -> 570 | E117: 50 | F117: =E117*D117 -> 28500 | J117: =C119 -> Storage Racks | K117: =F119 -> 3200
C118: Upfront Battery Purchases | D118: =C19/12 -> 16666.66667 | E118: =Batt_Buy_Cost -> 98.0988264 | F118: =E118*D118 -> 1634980.44 | J118: =C115 -> Computers | K118: =F115 -> 27000
C119: Storage Racks | D119: =C95 -> 32 | E119: 100 | F119: 3200 | J119: =C120 -> Forklift | K119: =F120 -> 14000
C120: Forklift | D120: =MAX(1,CEILING((C52/24),1)) -> 2 | E120: 7000 | F120: 14000 | J120: =C123 -> Work Stations | K120: =F123 -> 38000
C121: MD Truck | D121: =C34 -> 2 | E121: =C27 -> 141000 | F121: 282000 | J121: =C114 -> CAN hardware | K121: =F114 -> 5600
C122: Shipping Containers | D122: =C36 -> 522 | E122: =C37 -> 500 | F122: 261000
C123: Work Stations | D123: =C73+C74+C75 -> 76 | E123: 500 | F123: 38000 | J123: =J112 -> Upfront Battery Purchases | K123: =K112 -> 1634980.44
B124: Office & Other | G124: 100000 | J124: =J113 -> Battery Test Channels | K124: =K113 -> 700000
J125: Other | K125: =H110-SUM(K123:K124) -> 759300
A126: Employment Costs | H126: =G128+G141 -> 15989002.68
B127: Category | C127: Description | D127: Qty | E127: Unit Cost | F127: Item Cost | G127: Total Cost | H127: =G128+G141 -> 15989002.68
B128: Wages | G128: =SUM(F129:F140) -> 12280340
C129: Test Technicians | D129: =C55 -> 199 | E129: 37860 | F129: =E129*D129 -> 7534140 | J129: =C129 -> Test Technicians | K129: =F129 -> 7534140
C130: Forklift Drivers | D130: =C56 -> 8 | E130: 32660 | F130: =E130*D130 -> 261280 | J130: =C134 -> Electrical Engineers | K130: =F134 -> 933800
C131: Truck Drivers | D131: =C57 -> 2 | E131: 33490 | F131: 66980 | J131: =C135 -> Sales/Logistics Reps | K131: =F135 -> 856100
C132: Technician Supervisors | D132: =C58 -> 21 | E132: 58150 | F132: 1221150 | J132: =C132 -> Technician Supervisors | K132: =F132 -> 1221150
C133: Chief Executive | D133: =C62 -> 1 | E133: 178400 | F133: 178400 | J133: =C133 -> Chief Executive | K133: =F133 -> 178400
C134: Electrical Engineers | D134: =C60 -> 10 | E134: 93380 | F134: 933800 | J134: =C130 -> Forklift Drivers | K134: =F130 -> 261280
C135: Sales/Logistics Reps | D135: =C59 -> 10 | E135: 85610 | F135: 856100 | J135: =C139 -> Operations Manager | K135: =F139 -> 116090
C136: Administrative Assistants | D136: =C63 -> 9 | E136: 34000 | F136: 306000 | J136: =C136 -> Administrative Assistants | K136: =F136 -> 306000
C137: Security Guards | D137: =C65 -> 0 | E137: 27550 | F137: 0 | J137: =C138 -> Human Resources Manager | K137: =F138 -> 806400
C138: Human Resources Manager | D138: =C64 -> 8 | E138: 100800 | F138: 806400 | J138: =C131 -> Truck Drivers | K138: =F131 -> 66980
C139: Operations Manager | D139: =C61 -> 1 | E139: 116090 | F139: 116090
C140: Janitors | D140: =C66 -> 0 | E140: 25140 | F140: 0
B141: Non-Wage Compensation | D141: 0.302 | E141: =G128 -> 12280340 | G141: =D141*E141 -> 3708662.68
A143: Total Annual Expenses | H143: =G145+G154 -> 42329941.62
B144: Category | C144: Description | D144: Qty | E144: Unit Cost | F144: Item Cost | G144: Total Cost
B145: Direct Costs | G145: =SUM(F146:F153) -> 36159827.89
C146: Battery Modules | D146: =C19 -> 200000 | E146: 98.0988264 | F146: =E146*D146 -> 19619765.28 | H146: =F146/H143 -> 0.4634961572
C147: Pack Materials | D147: 0 | E147: 250 | F147: =E147*D147 -> 0 | H147: =Batt_Buy_Cost/24 -> 4.0874511 | J147: Battery Purchases | K147: =F146 -> 19619765.28
C148: Labor | F148: =H126 -> 15989002.68 | H148: =(F148+F146)/H143 -> 0.8412193968 | J148: Labor | K148: =F148 -> 15989002.68
C149: Rent | D149: =H69 -> 15019.03412 | E149: 9.7 | F149: =E149*D149 -> 145684.631 | J149: Electricity | K149: =SUM(F150:F151) -> 98328.50157
C150: Electricity: Testing (kWh) | D150: =C45 -> 617647.0588 | E150: 0.104 | F150: =E150*D150 -> 64235.29412 | J150: Warranty | K150: =F157 -> 2192532.664
C151: Electricity: HVAC & Lighting (kWh) | D151: =H69 -> 15019.03412 | E151: 2.27 | F151: =E151*D151 -> 34093.20745 | J151: G&A | K151: =F156 -> 1807991.395
C152: Transportation | D152: =C35 -> 122880 | E152: =C28 -> 0.5 | F152: =E152*D152 -> 61440 | J152: R&D | K152: =F158 -> 1084794.837
C153: Other Direct Costs | D153: 0.02 | E153: =G128 -> 12280340 | F153: =E153*D153 -> 245606.8 | J153: Insurance | K153: =F155 -> 1084794.837
B154: Indirect Costs | G154: =SUM(F155:F158) -> 6170113.732 | J154: Other | K154: =H143-SUM(K147:K153) -> 452731.431
C155: Insurance | D155: 0.03 | E155: =G145 -> 36159827.89 | F155: =E155*D155 -> 1084794.837
C156: G&A | D156: 0.05 | E156: =G145 -> 36159827.89 | F156: =E156*D156 -> 1807991.395 | J156: Direct Costs | K156: =SUM(F146:F153) -> 36159827.89
C157: Warranty | D157: 0.05 | E157: =C167*C18*C15 -> 43850653.29 | F157: =E157*D157 -> 2192532.664 | J157: Indirect Costs | K157: =H143-K156 -> 6170113.732
C158: R&D | D158: 0.03 | E158: =G145 -> 36159827.89 | F158: =E158*D158 -> 1084794.837
A161: Required Revenue
B162: CT-Forced Battery Selling Price | C162: =C15*C2 -> 220 | D162: per module | E162: Year | F162: Expenses | G162: Taxes | H162: Revenue | I162: Annual Profit | J162: Annual NPV | K162: Total NPV
B163: Discount Rate | C163: 0.15 | E163: 0 | F163: =H110 -> 3094280.44 | G163: 0 | H163: 0 | J163: =-F163 -> -3094280.44 | K163: =SUM(J163:J168) -> 2.060551196e-08
B164: Federal Tax Rate | C164: 0.393 | E164: 1 | F164: =H$143 -> 42329941.62 | G164: =MAX(0,(H164-F164)*(C$164+C$165)) -> 597639.6832 | H164: =C$166 -> 43850653.29 | I164: =H164-G164-F164 -> 923071.9789 | J164: =(H164-G164-F164)*(1+C$163)^-E164 -> 802671.286
B165: State Tax Rate | C165: 0 | E165: 2 | F165: =H$143 -> 42329941.62 | G165: =MAX(0,(H165-F165)*(C$164+C$165)) -> 597639.6832 | H165: =C$166 -> 43850653.29 | I165: =H165-G165-F165 -> 923071.9789 | J165: =(H165-G165-F165)*(1+C$163)^-E165 -> 697975.0313
B166: Annual Revenue | C166: =C162*D146*C167 -> 43850653.29 | E166: 3 | F166: =H$143 -> 42329941.62 | G166: =MAX(0,(H166-F166)*(C$164+C$165)) -> 597639.6832 | H166: =C$166 -> 43850653.29 | I166: =H166-G166-F166 -> 923071.9789 | J166: =(H166-G166-F166)*(1+C$163)^-E166 -> 606934.8098
B167: Yield (on modules) | C167: =(1-C14)^(C2*C13) -> 0.9966057565 | E167: 4 | F167: =H$143 -> 42329941.62 | G167: =MAX(0,(H167-F167)*(C$164+C$165)) -> 597639.6832 | H167: =C$166 -> 43850653.29 | I167: =H167-G167-F167 -> 923071.9789 | J167: =(H167-G167-F167)*(1+C$163)^-E167 -> 527769.3999
E168: 5 | F168: =H$143 -> 42329941.62 | G168: =MAX(0,(H168-F168)*(C$164+C$165)) -> 597639.6832 | H168: =C$166 -> 43850653.29 | I168: =H168-G168-F168 -> 923071.9789 | J168: =(H168-G168-F168)*(1+C$163)^-E168 -> 458929.9129
A169: Buying Price and Repurposing Cost
B170: Module Buying Price ($/kWh-nameplate) | C170: =Batt_Buy_Cost/C2 -> 19.61976528
B171: Effective Repurposing Cost ($/kWh-nameplate) | C171: =(C162-E146)/C2 -> 24.38023472
